fUST/lending_fUST_20250805
["ID","MTS","AMOUNT","RATE_DAILY","PERIOD"]
[377308318,1754329839219,-244.76707742,0.00030172,2]
[377308319,1754329839228,-720.69916455,0.00030172,2]
[377308320,1754329839238,-3922.20768882,0.00030172,2]
[377308321,1754329839247,-6964.63623811,0.00030175,2]
[377308322,1754329839257,-5654.45004021,0.00030176,2]
[377308323,1754329839267,-215.16777298,0.0003018,3]
[377308324,1754329839277,-216.36857094,0.0003018,3]
[377308325,1754329839286,-5204.76,0.0003018,3]
[377308326,1754329839297,-2602.38,0.0003018,3]
[377308327,1754329839307,-1301.18,0.0003018,3]
[377308328,1754329839317,-325.3,0.0003018,3]
[377308329,1754329839331,-151.0,0.000302,19]
[377308330,1754329839340,-151.0,0.000302,14]
[377308331,1754329839350,-650.6,0.0003026,3]
[377308332,1754329839359,-500.0,0.00030273,5]
[377308333,1754329839371,-500.0,0.00030273,5]
[377308334,1754329839380,-500.0,0.00030273,5]
[377308335,1754329839391,-527.71132116,0.00030273,5]
[377308336,1754329839402,-504.12015115,0.00030273,5]
[377308337,1754329839411,-500.0,0.00030273,5]
[377308338,1754329839421,-581.92127721,0.00030273,5]
[377308339,1754329839431,-500.0,0.00030273,5]
[377308340,1754329839440,-500.0,0.00030273,5]
[377308341,1754329839450,-500.0,0.00030273,5]
[377308342,1754329839459,-504.93492331,0.00030273,5]
[377308343,1754329839469,-502.18775387,0.00030273,5]
[377308344,1754329839478,-500.0,0.00030273,5]
[377308345,1754329839489,-501.40624993,0.00030273,5]
[377308346,1754329839498,-150.0,0.00030273,3]
[377308347,1754329839508,-200.0,0.00030273,5]
[377308348,1754329839517,-500.0,0.00030273,5]
[377308349,1754329839527,-500.0,0.00030273,2]
[377308350,1754329839536,-502.72741029,0.00030273,5]
[377308351,1754329839545,-500.0,0.00030273,5]
[377308352,1754329839555,-500.0,0.00030273,5]
[377308353,1754329839565,-500.0,0.00030273,5]
[377308354,1754329839576,-500.0,0.00030273,5]
[377308355,1754329839585,-500.0,0.00030273,5]
[377308356,1754329839595,-500.0,0.00030273,5]
[377308357,1754329839604,-500.0,0.00030273,5]
[377308358,1754329839614,-501.89009665,0.00030273,5]
[377308359,1754329839624,-500.0,0.00030273,5]
[377308360,1754329839635,-500.0,0.00030273,5]
[377308361,1754329839645,-3956.87772194,0.00030275,2]
[377308362,1754329839654,-1000.0,0.00030275,30]
[377308363,1754329839664,-1000.0,0.00030275,30]
[377308364,1754329839674,-1007.16,0.00030275,30]
[377308365,1754329839684,-138538.82607542,0.00030275,20]
[377308366,1754329839740,-500.0,0.00028577,2]
[377308367,1754329839749,-500.0,0.00028577,2]
[377308368,1754329839759,-500.0,0.00028577,2]
[377308369,1754329839769,-500.0,0.00028577,2]
[377308370,1754329839780,-500.0,0.00028577,2]
[377308371,1754329839790,-1764.82,0.00030275,20]
[377308372,1754329839803,-13967.33539272,0.00030275,20]
[377308373,1754329840014,-500.0,0.00028577,2]
[377308374,1754329840024,-500.0,0.00028577,2]
[377308375,1754329840034,-500.0,0.00028577,2]
[377308376,1754329840043,-500.0,0.00028577,2]
[377308377,1754329840053,-500.0,0.00028577,2]
[377308378,1754329840063,-500.0,0.00028577,2]
[377308379,1754329840073,-500.0,0.00028577,2]
[377308380,1754329840082,-500.0,0.00028577,2]
[377308382,1754329840092,-500.0,0.00028577,2]
[377308384,1754329840102,-500.0,0.00028577,2]
[377308385,1754329840112,-500.0,0.00028577,2]
[377308386,1754329840121,-500.0,0.00028577,2]
[377308387,1754329840131,-500.0,0.00028577,2]
[377308388,1754329840141,-500.0,0.00028577,2]
[377308390,1754329840150,-500.0,0.00028577,2]
[377308391,1754329840160,-216.11803035,0.00028577,2]
[377308392,1754329840170,-500.0,0.00028577,2]
[377308393,1754329840179,-500.0,0.00028577,2]
[377308394,1754329840188,-500.0,0.00028577,2]
[377308396,1754329840198,-500.0,0.00028577,2]
[377308398,1754329840207,-258642.35795194,0.00030275,20]
[377308399,1754329840219,-325.76237576,0.00030275,20]
[377308400,1754329840235,-398215.07850557,0.00030275,20]
[377308419,1754329841351,-297.15960525,0.00030275,20]
[377308617,1754329848853,-10639.10941331,0.00028552,2]
[377308618,1754329875914,447.41,0.00028802,30]
[377308619,1754329876388,447.41,0.00029318,30]
[377308620,1754329876787,447.41,0.00029834,30]
[377308621,1754329908341,150.0,0.00026489,30]
[377308622,1754329917520,172.92072147,0.0003,120]
[377308623,1754329975192,-152.46,0.00027532,15]
[377308624,1754329975215,-152.46,0.00027632,15]
[377308625,1754329975237,-152.46,0.00027732,15]
[377308626,1754329975259,-152.46,0.00027832,15]
[377308627,1754329975280,-152.46,0.00027932,15]
[377308628,1754329975301,-165.0808862,0.00028032,2]
[377308629,1754329975328,-152.46,0.00028032,15]
[377308630,1754329975349,-119.1591138,0.00028132,15]
[377308631,1754330016481,231.99,0.00028782,30]
[377308632,1754330016873,231.99,0.00029299,30]
[377308633,1754330017269,231.99,0.00029816,30]
[377308634,1754330043991,-197.811255,0.0002745,2]
[377308635,1754330044018,-33.3008862,0.00028132,15]
[377308636,1754330044043,-119.8878588,0.00028232,15]
[377308637,1754330061904,8697.1447529,0.00026571,2]
[377308638,1754330061926,1302.8552471,0.00026571,2]
[377308639,1754330079484,5459.65,0.00026571,2]
[377308640,1754330087061,162.02,0.00028708,30]
[377308641,1754330087618,162.02,0.00029238,30]
[377308642,1754330088431,162.02,0.00029768,30]
[377308643,1754330107785,-32.5721412,0.00028232,15]
[377308644,1754330107835,-152.46,0.00028332,15]
[377308645,1754330107871,-152.46,0.00028432,15]
[377308646,1754330107899,-152.46,0.00028532,15]
[377308647,1754330107924,-1200.0,0.00028551,2]
[377308648,1754330107950,-300.0,0.00028551,2]
[377308649,1754330107975,-300.0,0.00028551,2]
[377308650,1754330108001,-1200.0,0.00028551,2]
[377308651,1754330108026,-14260.89058669,0.00028552,2]
[377308652,1754330108049,-178.925,0.00028552,20]
[377308653,1754330108075,-608.74019566,0.00028566,2]
[377308654,1754330108097,-500.0,0.00028566,2]
[377308655,1754330108119,-504.32411892,0.00028566,2]
[377308656,1754330108341,-199.3499585,0.00028566,2]
[377308657,1754330108386,-375.51817985,0.00028566,2]
[377308658,1754330108443,-154.86697646,0.00028566,2]
[377308659,1754330108483,-500.0,0.00028566,2]
[377308660,1754330108510,-500.0,0.00028566,2]
[377308661,1754330108533,-608.74019566,0.00028566,2]
[377308662,1754330108555,-500.0,0.00028566,2]
[377308663,1754330108579,-608.74019566,0.00028566,2]
[377308664,1754330108602,-500.0,0.00028566,2]
[377308665,1754330108626,-399.44313651,0.00028566,2]
[377308666,1754330108650,-608.74019566,0.00028566,2]
[377308667,1754330108672,-500.0,0.00028566,2]
[377308668,1754330108696,-608.74019566,0.00028566,2]
[377308669,1754330108718,-568.76165168,0.00028566,2]
[377308670,1754330108741,-500.0,0.00028566,2]
[377308671,1754330108765,-608.74019566,0.00028566,2]
[377308672,1754330108786,-500.0,0.00028566,2]
[377308673,1754330108808,-500.0,0.00028566,2]
[377308674,1754330108832,-445.93655885,0.00028566,2]
[377308675,1754330108853,-500.0,0.00028566,2]
[377308676,1754330108877,-608.74019566,0.00028566,2]
[377308677,1754330108901,-608.74019566,0.00028566,2]
[377308678,1754330108925,-608.74019566,0.00028566,2]
[377308679,1754330108947,-500.0,0.00028566,2]
[377308680,1754330108969,-500.0,0.00028566,2]
[377308681,1754330108994,-608.74019566,0.00028566,2]
[377308682,1754330109017,-500.0,0.00028566,2]
[377308683,1754330109040,-608.74019566,0.00028566,2]
[377308684,1754330109062,-500.0,0.00028566,2]
[377308685,1754330109087,-608.74019566,0.00028566,2]
[377308686,1754330109109,-500.0,0.00028566,2]
[377308687,1754330109132,-608.74019566,0.00028566,2]
[377308688,1754330109154,-500.0,0.00028566,2]
[377308689,1754330109179,-608.74019566,0.00028566,2]
[377308690,1754330109206,-608.74019566,0.00028566,2]
[377308691,1754330109229,-608.74019566,0.00028566,2]
[377308692,1754330109252,-500.0,0.00028566,2]
[377308693,1754330109276,-608.74019566,0.00028566,2]
[377308694,1754330109298,-500.0,0.00028566,2]
[377308695,1754330109321,-500.0,0.00028566,2]
[377308696,1754330109345,-608.74019566,0.00028566,2]
[377308697,1754330109370,-608.74019566,0.00028566,2]
[377308698,1754330109392,-500.0,0.00028566,2]
[377308699,1754330109420,-608.74019566,0.00028566,2]
[377308700,1754330109446,-608.74019566,0.00028566,2]
[377308701,1754330109467,-500.0,0.00028566,2]
[377308702,1754330109491,-608.74019566,0.00028566,2]
[377308703,1754330109513,-500.0,0.00028566,2]
[377308704,1754330109538,-608.74019566,0.00028566,2]
[377308705,1754330109560,-500.0,0.00028566,2]
[377308706,1754330109584,-608.74019566,0.00028566,2]
[377308707,1754330109608,-608.74019566,0.00028566,2]
[377308708,1754330109631,-500.0,0.00028566,2]
[377308709,1754330109656,-608.74019566,0.00028566,2]
[377308710,1754330109680,-608.74019566,0.00028566,2]
[377308711,1754330109704,-608.74019566,0.00028566,2]
[377308712,1754330109728,-608.74019566,0.00028566,2]
[377308713,1754330109752,-608.74019566,0.00028566,2]
[377308714,1754330109777,-608.74019566,0.00028566,2]
[377308715,1754330109802,-608.74019566,0.00028566,2]
[377308716,1754330109826,-608.74019566,0.00028566,2]
[377308717,1754330109849,-608.74019566,0.00028566,2]
[377308718,1754330109872,-608.74019566,0.00028566,2]
[377308719,1754330109896,-608.74019566,0.00028566,2]
[377308720,1754330109921,-608.74019566,0.00028566,2]
[377308721,1754330109945,-608.74019566,0.00028566,2]
[377308722,1754330109969,-608.74019566,0.00028566,2]
[377308723,1754330109994,-608.74019566,0.00028566,2]
[377308724,1754330110018,-608.74019566,0.00028566,2]
[377308725,1754330110044,-608.74019566,0.00028566,2]
[377308726,1754330110068,-608.74019566,0.00028566,2]
[377308727,1754330110092,-608.74019566,0.00028566,2]
[377308728,1754330110116,-608.74019566,0.00028566,2]
[377308729,1754330110141,-608.74019566,0.00028566,2]
[377308730,1754330110165,-608.74019566,0.00028566,2]
[377308731,1754330110188,-608.74019566,0.00028566,2]
[377308732,1754330110210,-608.74019566,0.00028566,2]
[377308733,1754330110233,-608.74019566,0.00028566,2]
[377308734,1754330110256,-608.74019566,0.00028566,2]
[377308735,1754330110278,-608.74019566,0.00028566,2]
[377308736,1754330110301,-608.74019566,0.00028566,2]
[377308737,1754330110324,-608.74019566,0.00028566,2]
[377308738,1754330110348,-608.74019566,0.00028566,2]
[377308739,1754330110371,-608.74019566,0.00028566,2]
[377308740,1754330110399,-608.74019566,0.00028566,2]
[377308741,1754330110428,-608.74019566,0.00028566,2]
[377308742,1754330110452,-608.74019566,0.00028566,2]
[377308743,1754330110476,-608.74019566,0.00028566,2]
[377308744,1754330110503,-608.74019566,0.00028566,2]
[377308745,1754330110528,-608.74019566,0.00028566,2]
[377308746,1754330110554,-608.74019566,0.00028566,2]
[377308747,1754330110580,-608.74019566,0.00028566,2]
[377308748,1754330110606,-608.74019566,0.00028566,2]
[377308749,1754330110630,-608.74019566,0.00028566,2]
[377308750,1754330110655,-608.74019566,0.00028566,2]
[377308751,1754330110680,-608.74019566,0.00028566,2]
[377308752,1754330110704,-216.2151732,0.00028566,2]
[377308753,1754330110729,-602.65279372,0.00028566,2]
[377308754,1754330110755,-602.65279372,0.00028566,2]
[377308755,1754330110780,-602.65279372,0.00028566,2]
[377308756,1754330110805,-602.65279372,0.00028566,2]
[377308757,1754330110831,-602.65279372,0.00028566,2]
[377308758,1754330110855,-602.65279372,0.00028566,2]
[377308759,1754330110880,-602.65279372,0.00028566,2]
[377308760,1754330110904,-602.65279372,0.00028566,2]
[377308761,1754330110929,-602.65279372,0.00028566,2]
[377308762,1754330110956,-602.65279372,0.00028566,2]
[377308763,1754330110981,-602.65279372,0.00028566,2]
[377308764,1754330111006,-602.65279372,0.00028566,2]
[377308765,1754330111030,-602.65279372,0.00028566,2]
[377308766,1754330111058,-602.65279372,0.00028566,2]
[377308767,1754330111082,-602.65279372,0.00028566,2]
[377308768,1754330111107,-602.65279372,0.00028566,2]
[377308769,1754330111133,-602.65279372,0.00028566,2]
[377308770,1754330111157,-602.65279372,0.00028566,2]
[377308771,1754330111181,-602.65279372,0.00028566,2]
[377308772,1754330111205,-602.65279372,0.00028566,2]
[377308773,1754330111227,-48817.07048832,0.00028566,2]
[377308774,1754330111250,-9626.35685054,0.00028567,2]
[377308775,1754330157436,166.93,0.00029768,30]
[377308776,1754330222347,150.0,0.00026489,30]
[377308777,1754330238895,160.0,0.0002,3]
[377308778,1754330536127,150.0,0.00026489,30]
[377308779,1754330541482,160.0,0.0002,3]
[377308781,1754330597070,448.298893,0.00013699,2]
[377308782,1754330597280,448.298893,0.00020187,2]
[377308783,1754330598265,-201.48627487,0.00026605,2]
[377308784,1754330598291,-98.51372513,0.00026676,2]
[377308785,1754330599896,-158.39782396,0.00026676,2]
[377308787,1754330604391,181.72,0.00028148,30]
[377308788,1754330604785,181.72,0.0002897,30]
[377308789,1754330605176,181.72,0.00029792,30]
[377308790,1754330607226,-155.85503811,0.00026676,2]
[377308791,1754330608876,-35.5323058,0.00026676,2]
[377308792,1754330610224,130.4676942,0.00026571,2]
[377308793,1754330610246,27.93012976,0.00026571,2]
[377308794,1754330627889,1649.43,0.00026571,2]
[377308795,1754330659386,343.53683714,0.00026571,2]
[377308796,1754330659408,1305.88316286,0.00026571,2]
[377308797,1754330849552,150.0,0.00026489,30]
[377308799,1754330932491,-342.69604957,0.0002711,2]
[377308800,1754330935716,-294.24217677,0.0002711,2]
[377308801,1754330943087,-262.70936707,0.0002711,2]
[377308802,1754330944635,-300.0,0.00027109,2]
[377308803,1754330944658,-63.06177366,0.0002711,2]
[377308804,1754330950110,-282.21533461,0.0002711,2]
[377308808,1754330997802,-171.97345669,0.00027083,2]
[377308809,1754331030102,696.74745822,0.0002501,2]
[377308810,1754331030644,-104.30220919,0.00027083,2]
[377308890,1754331032706,-172.0,0.00027109,2]
[377308891,1754331032716,-300.0,0.00027109,2]
[377308892,1754331032726,-1200.0,0.00027109,2]
[377308893,1754331032737,-11048.13094748,0.0002711,2]
[377309071,1754331037709,-320.0,0.00027109,2]
[377309072,1754331037815,-180.0,0.00027109,2]
[377309073,1754331037825,-500.0,0.00027109,2]
[377309074,1754331037834,-500.0,0.00027109,2]
[377309075,1754331037844,-500.0,0.00027109,2]
[377309076,1754331037853,-534.17327356,0.00027109,2]
[377309077,1754331037863,-500.0,0.00027109,2]
[377309078,1754331037873,-604.20911482,0.00027109,2]
[377309079,1754331037883,-500.0,0.00027109,2]
[377309080,1754331037892,-500.0,0.00027109,2]
[377309081,1754331037901,-534.17327356,0.00027109,2]
[377309082,1754331037911,-500.0,0.00027109,2]
[377309083,1754331037921,-160.15433453,0.00027109,2]
[377309084,1754331037931,-500.0,0.00027109,2]
[377309085,1754331037940,-500.0,0.00027109,2]
[377309086,1754331037949,-579.95308907,0.00027109,2]
[377309087,1754331037959,-500.0,0.00027109,2]
[377309088,1754331037968,-500.0,0.00027109,2]
[377309089,1754331037978,-500.0,0.00027109,2]
[377309090,1754331037988,-356.75527674,0.00027109,2]
[377309091,1754331037998,-500.0,0.00027109,2]
[377309092,1754331038008,-534.17327356,0.00027109,2]
[377309093,1754331038017,-500.0,0.00027109,2]
[377309094,1754331038026,-500.0,0.00027109,2]
[377309095,1754331038036,-500.0,0.00027109,2]
[377309096,1754331038046,-500.0,0.00027109,2]
[377309097,1754331038056,-596.53996357,0.00027109,2]
[377309098,1754331038067,-500.0,0.00027109,2]
[377309099,1754331038085,-433.4251576,0.00027109,2]
[377309100,1754331038098,-534.17327356,0.00027109,2]
[377309101,1754331038108,-500.0,0.00027109,2]
[377309102,1754331038118,-500.0,0.00027109,2]
[377309103,1754331038128,-500.0,0.00027109,2]
[377309104,1754331038138,-534.17327356,0.00027109,2]
[377309105,1754331038148,-500.0,0.00027109,2]
[377309106,1754331038158,-500.0,0.00027109,2]
[377309107,1754331038167,-500.0,0.00027109,2]
[377309108,1754331038177,-534.17327356,0.00027109,2]
[377309109,1754331038188,-500.0,0.00027109,2]
[377309110,1754331038198,-500.0,0.00027109,2]
[377309111,1754331038208,-500.0,0.00027109,2]
[377309112,1754331038217,-500.0,0.00027109,2]
[377309113,1754331038405,-534.17327356,0.00027109,2]
[377309114,1754331038416,-500.0,0.00027109,2]
[377309115,1754331038426,-500.0,0.00027109,2]
[377309116,1754331038435,-534.17327356,0.00027109,2]
[377309117,1754331038446,-462.49583264,0.00027109,2]
[377309118,1754331038455,-500.0,0.00027109,2]
[377309119,1754331038465,-534.17327356,0.00027109,2]
[377309120,1754331038475,-500.0,0.00027109,2]
[377309121,1754331038484,-500.0,0.00027109,2]
[377309122,1754331038494,-500.0,0.00027109,2]
[377309123,1754331038504,-534.17327356,0.00027109,2]
[377309124,1754331038514,-500.0,0.00027109,2]
[377309125,1754331038524,-500.0,0.00027109,2]
[377309126,1754331038534,-500.0,0.00027109,2]
[377309127,1754331038544,-500.0,0.00027109,2]
[377309128,1754331038554,-534.17327356,0.00027109,2]
[377309129,1754331038564,-500.0,0.00027109,2]
[377309130,1754331038574,-500.0,0.00027109,2]
[377309131,1754331038584,-534.17327356,0.00027109,2]
[377309132,1754331038594,-500.0,0.00027109,2]
[377309133,1754331038604,-500.0,0.00027109,2]
[377309134,1754331038613,-534.17327356,0.00027109,2]
[377309135,1754331038622,-500.0,0.00027109,2]
[377309136,1754331038632,-500.0,0.00027109,2]
[377309137,1754331038642,-534.17327356,0.00027109,2]
[377309138,1754331038655,-500.0,0.00027109,2]
[377309139,1754331038665,-500.0,0.00027109,2]
[377309140,1754331038675,-534.17327356,0.00027109,2]
[377309141,1754331038685,-500.0,0.00027109,2]
[377309142,1754331038701,-500.0,0.00027109,2]
[377309143,1754331038713,-500.0,0.00027109,2]
[377309144,1754331038723,-500.0,0.00027109,2]
[377309145,1754331038733,-534.17327356,0.00027109,2]
[377309146,1754331038743,-500.0,0.00027109,2]
[377309147,1754331038753,-500.0,0.00027109,2]
[377309148,1754331038763,-534.17327356,0.00027109,2]
[377309149,1754331038773,-534.17327356,0.00027109,2]
[377309150,1754331038783,-500.0,0.00027109,2]
[377309151,1754331038793,-500.0,0.00027109,2]
[377309152,1754331038803,-534.17327356,0.00027109,2]
[377309153,1754331038813,-500.0,0.00027109,2]
[377309154,1754331038824,-534.17327356,0.00027109,2]
[377309155,1754331038834,-500.0,0.00027109,2]
[377309156,1754331038843,-534.17327356,0.00027109,2]
[377309157,1754331038853,-500.0,0.00027109,2]
[377309159,1754331038863,-534.17327356,0.00027109,2]
[377309160,1754331038872,-500.0,0.00027109,2]
[377309162,1754331038881,-534.17327356,0.00027109,2]
[377309164,1754331038891,-534.17327356,0.00027109,2]
[377309166,1754331038900,-500.0,0.00027109,2]
[377309168,1754331038910,-534.17327356,0.00027109,2]
[377309170,1754331038919,-500.0,0.00027109,2]
[377309171,1754331038929,-534.17327356,0.00027109,2]
[377309172,1754331038939,-534.17327356,0.00027109,2]
[377309173,1754331038949,-534.17327356,0.00027109,2]
[377309174,1754331038959,-500.0,0.00027109,2]
[377309176,1754331038969,-534.17327356,0.00027109,2]
[377309179,1754331038979,-534.17327356,0.00027109,2]
[377309180,1754331038989,-534.17327356,0.00027109,2]
[377309182,1754331038998,-534.17327356,0.00027109,2]
[377309184,1754331039009,-534.17327356,0.00027109,2]
[377309186,1754331039019,-534.17327356,0.00027109,2]
[377309188,1754331039028,-534.17327356,0.00027109,2]
[377309190,1754331039038,-534.17327356,0.00027109,2]
[377309192,1754331039048,-534.17327356,0.00027109,2]
[377309193,1754331039057,-534.17327356,0.00027109,2]
[377309194,1754331039069,-534.17327356,0.00027109,2]
[377309195,1754331039079,-534.17327356,0.00027109,2]
[377309196,1754331039089,-534.17327356,0.00027109,2]
[377309197,1754331039099,-534.17327356,0.00027109,2]
[377309198,1754331039112,-500.0,0.00027109,2]
[377309199,1754331039122,-534.17327356,0.00027109,2]
[377309200,1754331039132,-534.17327356,0.00027109,2]
[377309202,1754331039142,-534.17327356,0.00027109,2]
[377309204,1754331039152,-534.17327356,0.00027109,2]
[377309206,1754331039161,-534.17327356,0.00027109,2]
[377309208,1754331039171,-534.17327356,0.00027109,2]
[377309210,1754331039180,-534.17327356,0.00027109,2]
[377309212,1754331039190,-534.17327356,0.00027109,2]
[377309214,1754331039200,-534.17327356,0.00027109,2]
[377309216,1754331039209,-534.17327356,0.00027109,2]
[377309218,1754331039218,-534.17327356,0.00027109,2]
[377309220,1754331039228,-534.17327356,0.00027109,2]
[377309223,1754331039238,-534.17327356,0.00027109,2]
[377309225,1754331039247,-534.17327356,0.00027109,2]
[377309227,1754331039256,-534.17327356,0.00027109,2]
[377309229,1754331039265,-534.17327356,0.00027109,2]
[377309231,1754331039275,-534.17327356,0.00027109,2]
[377309233,1754331039284,-534.17327356,0.00027109,2]
[377309235,1754331039294,-534.17327356,0.00027109,2]
[377309237,1754331039303,-534.17327356,0.00027109,2]
[377309239,1754331039313,-534.17327356,0.00027109,2]
[377309241,1754331039326,-534.17327356,0.00027109,2]
[377309243,1754331039335,-534.17327356,0.00027109,2]
[377309245,1754331039345,-12606.94435084,0.0002711,2]
[377309248,1754331039355,-237.792938,0.00027268,2]
[377309250,1754331039364,-666.0,0.0002734,2]
[377309252,1754331039374,-171.52,0.00027532,15]
[377309254,1754331039383,-171.53,0.00027632,15]
[377309256,1754331039393,-4424.74715605,0.000279,18]
[377309258,1754331039402,-175.00958264,0.00028075,2]
[377309260,1754331039412,-612.04874526,0.00028352,2]
[377309262,1754331039422,-192.08564486,0.00028442,2]
[377309264,1754331039432,-478.18,0.0002853,10]
[377309266,1754331039442,-12108.1545079,0.00028531,2]
[377309268,1754331039452,-176.13,0.00028533,3]
[377309270,1754331039462,-519.34001192,0.00028539,2]
[377309272,1754331039471,-1200.0,0.0002854,2]
[377309274,1754331039481,-178.925,0.00028541,20]
[377309276,1754331039491,-12108.1545079,0.00028552,2]
[377309278,1754331039501,-500.0,0.00028565,2]
[377309280,1754331039510,-194.81404365,0.00028567,2]
[377309282,1754331039520,-501.69518135,0.00028573,5]
[377309284,1754331039529,-500.0,0.00028573,5]
[377309286,1754331039538,-500.0,0.00028573,5]
[377309288,1754331039548,-299.55837291,0.00028573,5]
[377309290,1754331039558,-500.0,0.00028573,5]
[377309292,1754331039570,-504.05081134,0.00028573,5]
[377309294,1754331039580,-500.0,0.00028573,5]
[377309297,1754331039590,-500.0,0.00028573,5]
[377309299,1754331039600,-500.0,0.00028573,5]
[377309301,1754331039610,-500.0,0.00028573,5]
[377309303,1754331039620,-500.0,0.00028573,5]
[377309305,1754331039629,-500.0,0.00028573,5]
[377309307,1754331039638,-500.0,0.00028573,5]
[377309309,1754331039649,-500.0,0.00028573,5]
[377309311,1754331039658,-500.0,0.00028573,5]
[377309313,1754331039668,-500.0,0.00028573,5]
[377309315,1754331039677,-500.0,0.00028573,5]
[377309317,1754331039687,-262.14508383,0.00028573,5]
[377309318,1754331039700,-506.86097359,0.00028573,5]
[377309321,1754331039710,-506.85336871,0.00028573,5]
[377309323,1754331039721,-502.33443714,0.00028573,5]
[377309325,1754331039730,-151.0,0.00028596,2]
[377309327,1754331039739,-151.0,0.00028596,2]
[377309329,1754331039751,-151.0,0.00028596,2]
[377309331,1754331039761,-151.0,0.00028596,2]
[377309333,1754331039772,-151.0,0.00028596,2]
[377309335,1754331039781,-151.0,0.00028596,2]
[377309337,1754331039791,-151.0,0.00028596,2]
[377309338,1754331039801,-151.0,0.00028596,2]
[377309340,1754331039811,-151.0,0.00028596,2]
[377309343,1754331039822,-151.0,0.00028596,2]
[377309345,1754331039832,-151.0,0.00028596,2]
[377309346,1754331039842,-151.0,0.00028596,2]
[377309348,1754331039852,-151.0,0.00028596,2]
[377309350,1754331039862,-151.0,0.00028596,2]
[377309352,1754331039872,-151.0,0.00028596,2]
[377309354,1754331039882,-151.0,0.00028596,2]
[377309356,1754331039892,-151.0,0.00028596,2]
[377309358,1754331039902,-151.0,0.00028596,2]
[377309360,1754331039911,-151.0,0.00028596,2]
[377309362,1754331039920,-151.0,0.00028596,2]
[377309363,1754331039930,-2030.296672,0.00028596,2]
[377309365,1754331039939,-300.0,0.00028596,2]
[377309366,1754331039949,-300.0,0.00028596,2]
[377309367,1754331039958,-300.0,0.00028596,2]
[377309368,1754331039968,-300.0,0.00028596,2]
[377309369,1754331039977,-300.0,0.00028596,2]
[377309371,1754331039988,-151.0,0.00028596,2]
[377309373,1754331039997,-300.0,0.00028596,2]
[377309374,1754331040007,-300.0,0.00028596,2]
[377309375,1754331040017,-300.0,0.00028596,2]
[377309376,1754331040032,-300.0,0.00028596,2]
[377309377,1754331040047,-300.0,0.00028596,2]
[377309378,1754331040057,-300.0,0.00028596,2]
[377309379,1754331040067,-300.0,0.00028596,2]
[377309380,1754331040077,-300.0,0.00028596,2]
[377309381,1754331040087,-300.0,0.00028596,2]
[377309382,1754331040097,-300.0,0.00028596,2]
[377309383,1754331040107,-300.0,0.00028596,2]
[377309384,1754331040117,-300.0,0.00028596,2]
[377309386,1754331040127,-300.0,0.00028596,2]
[377309388,1754331040137,-300.0,0.00028596,2]
[377309390,1754331040147,-300.0,0.00028596,2]
[377309392,1754331040157,-300.0,0.00028596,2]
[377309393,1754331040166,-300.0,0.00028596,2]
[377309394,1754331040176,-151.0,0.00028596,2]
[377309395,1754331040186,-151.0,0.00028596,2]
[377309396,1754331040196,-151.0,0.00028596,2]
[377309397,1754331040206,-300.0,0.00028596,2]
[377309398,1754331040218,-300.0,0.00028596,2]
[377309399,1754331040231,-151.0,0.00028596,2]
[377309400,1754331040241,-151.0,0.00028596,2]
[377309401,1754331040251,-300.0,0.00028596,2]
[377309402,1754331040260,-300.0,0.00028596,2]
[377309403,1754331040270,-151.0,0.00028596,2]